[Event "USA Championship 2022"]
[Site "Saint Louis"]
[Date "2022.10.08"]
[Round "4.3"]
[White "Moradiabadi, Elshan"]
[Black "Xiong, Jeffery"]
[Result "1/2-1/2"]
[ECO "B30"]
[WhiteElo "2534"]
[BlackElo "2690"]
[Annotator "TA"]
[PlyCount "78"]
[EventDate "2022.09.05"]
[EventType "tourn"]
[EventCountry "USA"]
[SourceTitle "playchess.com"]
[Source "ChessBase"]
[SourceQuality "1"]
[TimeControl "40/5400+30:1800+30"]

{[%evp 9,78,8,20,0,1,0,0,-10,0,2,24,19,22,20,33,23,23,25,33,0,38,45,45,50,64,47,34,30,25,37,31,16,32,21,21,16,27,20,24,13,16,18,16,17,17,24,42,45,107,0,0,0,0,0,13,0,0,0,0,0,0,0,0,0,0,0,0,0,0,0,3]} 1. e4 {[%emt 0:00:02]} c5 {[%emt 0:00:16]} 2. Nf3 {[%emt 0:00:04]} Nc6 {[%emt 0:00:17]} 3. Bb5 {[%emt 0:02:05]} Nf6 {[%emt 0:00:21]} 4. e5 {[%emt 0:02:38]} Nd5 {[%emt 0:00:20]} 5. Nc3 {[%emt 0:00:13]} Nc7 {[%emt 0:00:47]} 6. a4 {[%emt 0:01:18] B30: Sicilian: 2...Nc6 3 Bb5, lines without ...g6.} g6 {[%emt 0:08:18]} 7. O-O {[%emt 0:01:48]} Bg7 {[%emt 0:00:04]} 8. Re1 {[%emt 0:00:27]} O-O {[%emt 0:01:16]} 9. d3 {[%emt 0:04:09]} d6 {[%emt 0:15:19]} 10. exd6 $1 {[%emt 0:09:32]} exd6 {[%emt 0:00:16]} 11. Bg5 {[%emt 0:00:13]} f6 {[%emt 0:00:46] [#]} 12. Be3 $146 {[%emt 0:00:17]} ({Predecessor:} 12. Bf4 Ne5 13. d4 Nxf3+ 14. Qxf3 cxd4 15. Ne4 d5 16. Nd6 a6 17. Bd3 b6 18. Nxc8 Rxc8 19. Bxc7 Qxc7 20. Qxd5+ {½-½ (39) Priasmoro,N (2501)-Wong,Y (2381) Ha Long 2022}) 12... Nxb5 {[%emt 0:10:39]} 13. axb5 {[%emt 0:00:30]} Nb4 {[%emt 0:00:30]} 14. Ne4 {[%emt 0:16:09]} Nd5 {[%emt 0:06:20] Against Bf4} (14... f5 $5 {[%cal Rf5e4]} 15. c3 fxe4 16. dxe4 Be6 $11) 15. Bd2 {[%emt 0:03:10]} f5 {[%emt 0:04:02][%csl LRb2,LRe4]} 16. Nc3 {[%emt 0:02:15]} Nf6 {[%emt 0:04:06]} 17. Qc1 {[%emt 0:04:55] White is more active.} b6 {[%emt 0:05:07]} 18. Bh6 {[%emt 0:06:45]} Bxh6 {[%emt 0:02:08]} 19. Qxh6 {[%emt 0:00:01]} Bb7 {[%emt 0:00:06]} 20. Nd2 {[%emt 0:03:47]} Qd7 {[%emt 0:01:08]} 21. Qh4 {[%emt 0:03:26]} Kg7 {[%emt 0:05:59]} 22. f3 {[%emt 0:00:48]} Bd5 {[%emt 0:03:09]} 23. Nc4 {[%emt 0:09:49]} Rae8 {[%emt 0:04:59]} 24. Qf4 {[%emt 0:01:54] And now Rxe8 would win.} Rxe1+ {[%emt 0:01:47]} 25. Rxe1 {[%emt 0:00:06]} Re8 {[%emt 0:00:04][%cal Bf8e8,Be8e7,Be7d7][%mdl 32]} 26. Ra1 {[%emt 0:01:52]} Bxc4 {[%emt 0:07:05]} 27. dxc4 {[%emt 0:00:06]} Re7 {[%emt 0:00:06]} 28. Rd1 {[%emt 0:02:44]} Qe6 {[%emt 0:00:27]} (28... Re6 $14) 29. h3 {[%emt 0:01:07]} (29. Qxd6 $16 Qe3+ 30. Kf1) 29... Rd7 $11 {[%emt 0:05:14] The position is equal.} 30. Nd5 {[%emt 0:05:19]} Nxd5 {[%emt 0:02:21]} 31. Rxd5 {[%emt 0:00:26][%mdl 4096] Endgame KQR-KQR} Qe1+ {[%emt 0:02:03]} 32. Kh2 {[%emt 0:00:40]} Qb1 {[%emt 0:00:03][%csl LRb2,LRc2]} 33. Rxd6 {[%emt 0:04:19]} Rxd6 {[%emt 0:00:02]} 34. Qxd6 {[%emt 0:00:07]} Qxc2 {[%emt 0:02:24] KQ-KQ} 35. Qe7+ {[%emt 0:00:34]} Kg8 {[%emt 0:00:50]} 36. Qe6+ {[%emt 0:02:13]} Kg7 {[%emt 0:00:22]} 37. Qe7+ {[%emt 0:03:58]} Kg8 {[%emt 0:00:03]} 38. Qe6+ {[%emt 0:00:07]} Kg7 {[%emt 0:00:03]} 39. Qe7+ {[%emt 0:00:04]} Kg8 {[%emt 0:00:35] Weighted Error Value: White=0.07 (flawless) /Black=0.05 (flawless)} 1/2-1/2

[Event "USA Championship 2022"]
[Site "Saint Louis"]
[Date "2022.10.08"]
[Round "4.4"]
[White "Swiercz, Dariusz"]
[Black "Dominguez Perez, Leinier"]
[Result "1/2-1/2"]
[ECO "E48"]
[WhiteElo "2652"]
[BlackElo "2747"]
[Annotator "TA"]
[PlyCount "55"]
[EventDate "2022.09.05"]
[EventType "tourn"]
[EventCountry "USA"]
[SourceTitle "playchess.com"]
[Source "ChessBase"]
[SourceQuality "1"]
[TimeControl "40/5400+30:1800+30"]

{[%evp 16,55,2,3,13,16,14,0,0,0,0,5,6,6,12,8,6,10,7,11,9,0,0,0,0,0,0,0,0,0,0,0,0,0,0,0,0,0,0,0,0,0]} 1. c4 {[%emt 0:00:06]} Nf6 {[%emt 0:01:49]} 2. d4 {[%emt 0:04:24]} e6 {[%emt 0:00:29]} 3. Nc3 {[%emt 0:01:01]} Bb4 {[%emt 0:00:23]} 4. e3 {[%emt 0:00:07]} O-O {[%emt 0:00:07]} 5. Bd3 {[%emt 0:00:04]} c5 {[%emt 0:00:10]} 6. Nge2 {[%emt 0:00:58][%cal Bg1e2,Be2f4,Bf4d5][%mdl 32]} d5 {[%emt 0:01:14]} 7. cxd5 {[%emt 0:00:25]} cxd4 {[%emt 0:00:09]} 8. exd4 {[%emt 0:00:04]} Nxd5 {[%emt 0:00:06]} 9. O-O {[%emt 0:00:22] The position is equal.} Re8 {[%emt 0:00:10] E48: Nimzo-Indian: Rubinstein: 5 Bd3 d5 including 6 Ne2, but excluding 6 a3.} 10. Nxd5 {[%emt 0:13:30]} exd5 {[%emt 0:01:03]} 11. Nf4 {[%emt 0:00:03]} Nc6 {[%emt 0:09:26]} 12. Be3 {[%emt 0:04:24]} Bd6 {[%emt 0:05:28]} 13. Qf3 $1 {[%emt 0:21:37] [#]} Qh4 $146 {[%emt 0:11:38][%cal Oc6d4]} ({Predecessor:} 13... Nb4 14. Bb1 Qf6 15. a3 Bxf4 16. Qxf4 Qxf4 17. Bxf4 Nc6 18. Be3 Na5 19. Bd3 Nb3 {½-½ (55) Kazhgaleyev,M (2587)-Gelfand,B (2673) St Petersburg 2018}) 14. g3 {[%emt 0:14:27]} Qg4 {[%emt 0:02:24]} 15. Qxg4 {[%emt 0:02:54]} Bxg4 {[%emt 0:00:22]} 16. Nxd5 {[%emt 0:00:06]} Rad8 $1 {[%emt 0:04:58]} 17. Nc3 {[%emt 0:01:27]} Be5 {[%emt 0:15:24]} 18. Be2 {[%emt 0:19:11]} Bxe2 {[%emt 0:01:19]} 19. Nxe2 {[%emt 0:00:05]} Nxd4 {[%emt 0:00:08]} 20. Nxd4 {[%emt 0:00:03]} Bxd4 {[%emt 0:00:11]} 21. Bxd4 {[%emt 0:00:01]} Rxd4 {[%emt 0:00:07]} 22. Rfd1 {[%emt 0:00:02]} Rxd1+ {[%emt 0:01:26]} 23. Rxd1 $11 {[%emt 0:00:03] KR-KR} Kf8 {[%emt 0:00:07]} 24. Rd7 {[%emt 0:00:05]} Re7 {[%emt 0:00:05]} 25. Rd8+ {[%emt 0:00:02]} Re8 {[%emt 0:00:05]} 26. Rd7 {[%emt 0:00:03]} Re7 {[%emt 0:00:05]} 27. Rd8+ {[%emt 0:00:02]} Re8 {[%emt 0:00:08]} 28. Rd7 {[%emt 0:00:19] A balanced but interesting game.  Weighted Error Value: White=0.02 (flawless) /Black=0.01 (flawless)} 1/2-1/2

[Event "USA Championship 2022"]
[Site "Saint Louis"]
[Date "2022.10.08"]
[Round "4.5"]
[White "Niemann, Hans Moke"]
[Black "Caruana, Fabiano"]
[Result "0-1"]
[ECO "E36"]
[WhiteElo "2699"]
[BlackElo "2763"]
[Annotator "TA"]
[PlyCount "160"]
[EventDate "2022.09.05"]
[EventType "tourn"]
[EventCountry "USA"]
[SourceTitle "playchess.com"]
[Source "ChessBase"]
[SourceQuality "1"]
[TimeControl "40/5400+30:1800+30"]

{[%evp 12,160,0,17,12,14,10,19,23,12,17,6,11,15,11,15,8,0,18,23,25,11,17,0,0,-10,0,0,0,-10,-16,-31,-13,-78,-75,-91,0,-79,-29,-47,-45,-80,-14,-15,-12,-33,-31,-31,-43,-96,-87,-125,-125,-125,-137,-129,-129,-122,-125,-122,-83,-130,-141,-141,-83,-82,-83,-72,-69,-81,0,-33,0,-75,-57,-71,-50,-77,-77,-77,-77,-77,-77,-190,-204,-204,-204,-409,-408,-395,-396,-350,-370,-393,-393,-364,-363,-280,-30,-30,-30,-43,-43,-67,-30,-30,-30,-30,-8,-45,0,-45,-45,-45,-47,-47,-47,-1380,-166,-29958,-29959,-29964,-29965,-29964,-29966,-29966,-29967,-29967,-29968,-29968,-29967,-29971,-29973,-29973,-29971,-29970,-29970,-29972,-29972,-29973,-29973,-29974,-29975,-29976,-29974,-29974,-29975,-29975,-29976,-29976,-29976]} 1. d4 {[%emt 0:04:35]} Nf6 {[%emt 0:00:07]} 2. c4 {[%emt 0:01:08]} e6 {[%emt 0:00:05]} 3. Nc3 {[%emt 0:00:26]} Bb4 {[%emt 0:00:06]} 4. Qc2 {[%emt 0:00:10]} O-O {[%emt 0:00:45]} 5. a3 {[%emt 0:00:56]} Bxc3+ {[%emt 0:00:06]} 6. Qxc3 {[%emt 0:00:09]} d5 {[%emt 0:00:15]} 7. Bg5 {[%emt 0:00:51]} h6 {[%emt 0:02:59] E36: Nimzo-Indian: Classical: 4...d5 5 a3.} 8. Bxf6 {[%emt 0:00:45]} Qxf6 {[%emt 0:00:08]} 9. Nf3 {[%emt 0:02:54]} dxc4 $1 {[%emt 0:00:53] The position is equal. 9...dxc4 is better than 9...c6.} 10. Qxc4 {[%emt 0:02:17]} Nc6 {[%emt 0:00:13]} 11. Qc3 {[%emt 0:02:13]} Re8 {[%emt 0:00:22]} 12. Rd1 {[%emt 0:06:27]} e5 {[%emt 0:00:18]} 13. d5 {[%emt 0:00:28]} Nb8 {[%emt 0:00:11]} 14. e3 {[%emt 0:06:57]} Bf5 {[%emt 0:00:24]} 15. Be2 {[%emt 0:02:43]} Nd7 {[%emt 0:00:12]} 16. O-O {[%emt 0:00:35]} Rac8 {[%emt 0:00:59] [#]} 17. a4 $146 {[%emt 0:11:17]} ({Predecessor:} 17. Bb5 a6 18. Bxd7 Bxd7 19. Nd2 Qg6 20. f3 Rcd8 21. Nc4 Bb5 22. b3 c6 23. a4 cxd5 24. Nxe5 Rxe5 25. Qxe5 Bxf1 26. Kxf1 {½-½ (41) Gledura,B (2644)-Sevian,S (2703) Saint Louis 2022}) 17... c6 {[%emt 0:17:00]} 18. d6 {[%emt 0:12:40]} Rcd8 {[%emt 0:03:25]} 19. a5 {[%emt 0:01:54]} Bg4 {[%emt 0:10:00]} 20. h3 {[%emt 0:11:19]} Bxf3 {[%emt 0:11:31]} 21. gxf3 {[%emt 0:00:30]} Nf8 {[%emt 0:08:38]} 22. Qb4 {[%emt 0:04:39]} (22. a6 $11 bxa6 23. Qxc6) 22... Rd7 $1 $17 {[%emt 0:06:08]} 23. Rd2 {[%emt 0:01:31]} Ng6 {[%emt 0:04:29] Prevents f4.} (23... a6 $17) 24. Rfd1 {[%emt 0:02:31]} (24. a6 $11 {remains equal.}) 24... Nh4 {[%emt 0:01:40]} (24... a6 $17) 25. Qg4 {[%emt 0:02:14]} Re6 {[%emt 0:04:13]} 26. Kf1 {[%emt 0:04:30]} Nf5 {[%emt 0:04:15]} ({Black should try} 26... a6 $17) 27. a6 $11 {[%emt 0:02:55]} bxa6 {[%emt 0:02:01]} (27... Nxd6 $2 28. axb7 Rd8 29. Bc4 Nxb7 30. Bxe6 fxe6 31. Rxd8+ Nxd8 32. Rd7 $18) 28. Bxa6 {[%emt 0:00:56] Strongly threatening Bc8.} Rdxd6 {[%emt 0:05:06]} 29. Rxd6 {[%emt 0:00:40]} Nxd6 {[%emt 0:00:56]} 30. Bd3 {[%emt 0:01:22] Against e4} (30. Qb4 $15) 30... g6 $17 {[%emt 0:00:25]} 31. h4 {[%emt 0:03:27]} h5 {[%emt 0:02:28]} 32. Qg3 {[%emt 0:00:30]} Kg7 {[%emt 0:02:45]} 33. e4 {[%emt 0:00:31]} Qe7 {[%emt 0:05:39]} 34. Qg5 {[%emt 0:01:37]} Qb7 {[%emt 0:00:46]} 35. Qc1 {[%emt 0:00:52]} Qb4 {[%emt 0:04:18]} 36. Qd2 {[%emt 0:01:10]} (36. Qxc6 $142 Qxb2 37. Qc5) 36... Qxd2 {[%emt 0:02:03] Black is more active.} 37. Rxd2 {[%emt 0:00:01][%mdl 4096] Endgame KRB-KRN} Kf6 {[%emt 0:00:11]} (37... Nb5 $142 $1 {White must now prevent ...Rd6.} 38. Bxb5 cxb5) 38. b4 {[%emt 0:01:13]} g5 {[%emt 0:00:25]} 39. Ra2 {[%emt 0:02:56]} Nc8 {[%emt 0:02:44]} 40. Ba6 {[%emt 0:02:39]} Nd6 {[%emt 0:00:06]} (40... Nb6 $1 $17) 41. Be2 {[%emt 0:31:38]} Nc8 {[%emt 0:08:30]} 42. f4 {[%emt 0:00:00]} (42. Ba6 $1 $11 {keeps the balance.} Nb6 43. Be2) 42... gxh4 {[%emt 0:06:31]} 43. Bxh5 {[%emt 0:00:00]} Nd6 {[%emt 0:02:02]} 44. Rxa7 {[%emt 0:00:00]} exf4 {[%emt 0:00:02]} 45. f3 {[%emt 0:00:00]} Re5 $1 {[%emt 0:08:56]} 46. Bg4 {[%emt 0:00:00]} Nc4 $1 {[%emt 0:00:41]} 47. Kg2 {[%emt 0:00:00]} (47. Ra6 $17 {was the only defense.} Ne3+ 48. Kf2) 47... Rb5 $1 $19 {[%emt 0:00:22]} 48. Ra4 {[%emt 0:00:00]} Ne5 {[%emt 0:02:48]} 49. Kh3 $2 {[%emt 0:00:57]} (49. Bh3 {was necessary.}) 49... Kg5 {[%emt 0:01:16]} 50. Ra8 {[%emt 0:00:07]} Rxb4 {[%emt 0:00:19]} 51. Rh8 {[%emt 0:00:21]} Kf6 {[%emt 0:01:52]} 52. Rh5 {[%emt 0:00:09]} Rb5 {[%emt 0:01:32]} 53. Rf5+ {[%emt 0:00:48]} Ke7 $1 {[%emt 0:01:05]} 54. Bh5 {[%emt 0:04:13] [#]} Ng6 {[%emt 0:01:33]} (54... Ke6 $1 $19 {...c5 is the strong threat.} 55. Rxf4 Nd3 56. Bg4+ Ke7) 55. Bxg6 $11 {[%emt 0:00:06]} fxg6 {[%emt 0:00:02]} 56. Rxf4 {[%emt 0:00:03] KR-KR} g5 {[%emt 0:00:33]} 57. Rg4 {[%emt 0:00:02]} Kf6 {[%emt 0:00:39] And now ...Rb3 would win.} 58. f4 $1 {[%emt 0:01:17]} Rb3+ {[%emt 0:00:49]} 59. Kh2 $1 {[%emt 0:00:04]} Rb2+ {[%emt 0:00:33]} 60. Kh3 {[%emt 0:00:04]} Rb3+ {[%emt 0:00:21]} 61. Kh2 $1 {[%emt 0:00:29]} gxf4 {[%emt 0:00:17]} 62. Rxf4+ {[%emt 0:00:05]} Ke5 {[%emt 0:00:08]} 63. Rxh4 {[%emt 0:00:04]} Re3 {[%emt 0:00:25]} 64. Rh6 {[%emt 0:01:14] Loses the game.} Rc3 {[%emt 0:00:25]} 65. Kg2 $2 {[%emt 0:02:00]} (65. Rh4 $19) 65... Kxe4 {[%emt 0:00:04] Black mates.} 66. Rd6 {[%emt 0:00:36]} Ke3 {[%emt 0:00:46]} 67. Re6+ {[%emt 0:00:08]} Kd2 {[%emt 0:00:31]} 68. Rd6+ {[%emt 0:00:38]} Kc2 {[%emt 0:00:19]} 69. Kf2 {[%emt 0:00:08]} c5 {[%emt 0:00:14][%cal Bc6c5,Bc5c4][%mdl 32]} 70. Rc6 {[%emt 0:01:00]} Kd2 {[%emt 0:00:58]} 71. Rc8 {[%emt 0:01:21]} c4 {[%emt 0:00:02]} 72. Rc7 {[%emt 0:00:06]} Rc2 {[%emt 0:00:54]} 73. Rd7+ {[%emt 0:00:09]} Kc3+ {[%emt 0:00:24]} 74. Ke1 {[%emt 0:00:27]} Rh2 {[%emt 0:00:09]} 75. Kd1 {[%emt 0:01:08]} Rh1+ {[%emt 0:00:04]} 76. Ke2 {[%emt 0:00:01]} Kc2 {[%emt 0:00:29]} 77. Rd2+ {[%emt 0:00:07]} Kb3 {[%emt 0:00:31]} 78. Rd8 {[%emt 0:00:05]} c3 {[%emt 0:00:22]} 79. Rb8+ {[%emt 0:00:21] [#]} Kc2 $1 {[%emt 0:00:03]} 80. Ra8 {[%emt 0:00:12]} Rh7 {[%emt 0:00:14] Weighted Error Value: White=0.18 (very precise) /Black=0.17 (very precise)} 0-1

[Event "USA Championship 2022"]
[Site "Saint Louis"]
[Date "2022.10.08"]
[Round "4.6"]
[White "Sevian, Samuel"]
[Black "Liang, Awonder"]
[Result "1/2-1/2"]
[ECO "C87"]
[WhiteElo "2684"]
[BlackElo "2608"]
[Annotator "TA"]
[PlyCount "101"]
[EventDate "2022.09.05"]
[EventType "tourn"]
[EventCountry "USA"]
[SourceTitle "playchess.com"]
[Source "ChessBase"]
[SourceQuality "1"]
[TimeControl "40/5400+30:1800+30"]

{[%evp 17,101,27,28,23,34,28,29,6,43,27,41,10,22,15,16,16,8,4,1,0,7,0,4,8,12,18,35,0,0,-3,-3,-3,-12,-18,-13,-20,-21,-18,-14,-22,-22,-52,-52,-95,0,0,0,-8,-12,-21,-3,-23,-35,-30,-31,-49,-49,-62,0,0,0,0,0,0,0,-14,0,0,0,0,0,0,0,0,0,0,0,0,0,0,0,0,0,0,0,0]} 1. e4 {[%emt 0:03:27]} e5 {[%emt 0:00:06]} 2. Nf3 {[%emt 0:00:09]} Nc6 {[%emt 0:00:01]} 3. Bb5 {[%emt 0:00:09]} Nf6 {[%emt 0:00:07]} 4. d3 {[%emt 0:02:47]} d6 {[%emt 0:00:02]} 5. O-O {[%emt 0:03:56]} a6 {[%emt 0:00:02]} 6. Bxc6+ {[%emt 0:01:12]} bxc6 {[%emt 0:00:02]} 7. d4 {[%emt 0:00:15]} Be7 {[%emt 0:00:02]} 8. Re1 {[%emt 0:02:40]} exd4 {[%emt 0:00:21]} 9. Nxd4 {[%emt 0:01:17][%cal Bf3d4,Bd4c2,Bc2e3,Be3f5][%mdl 32]} Bd7 {[%emt 0:00:02]} 10. c4 {[%emt 0:04:35] C87: Closed Ruy Lopez: Steinitz-type lines after 6 Re1 d6.} O-O {[%emt 0:01:20]} 11. Nc3 {[%emt 0:00:21]} Re8 {[%emt 0:01:57]} 12. h3 {[%emt 0:05:29] White has an edge.} h6 {[%emt 0:01:09] [#]} 13. Qd3 $146 {[%emt 0:09:17]} ({Predecessor:} 13. Bf4 Nh7 14. Qc2 Nf8 15. Rad1 Ng6 16. Bh2 Bf6 17. Nf3 Qe7 18. Re3 Be6 19. b3 {1-0 (39) Goloshchapov,A (2555)-Laurent,B (2397) Cappelle la Grande 2007}) 13... c5 {[%emt 0:07:03]} 14. Nc2 {[%emt 0:03:15]} Bc6 {[%emt 0:02:43]} 15. Ne3 {[%emt 0:05:58]} a5 {[%emt 0:03:06]} 16. Nf5 {[%emt 0:05:04] aiming for Qg3.} Bf8 {[%emt 0:01:25]} 17. Bf4 {[%emt 0:01:51]} Nd7 {[%emt 0:11:00]} 18. Rad1 {[%emt 0:01:49]} Qf6 {[%emt 0:03:26]} 19. Bc1 {[%emt 0:01:34]} g6 {[%emt 0:05:35]} 20. Ne3 {[%emt 0:04:55]} (20. Nxh6+ $2 Bxh6 21. Bxh6 g5 22. Bxg5 Qxg5 $19) 20... Bg7 {[%emt 0:03:14]} 21. Ned5 {[%emt 0:03:25]} Qd8 {[%emt 0:01:55]} 22. b3 {[%emt 0:12:34]} a4 {[%emt 0:07:02]} 23. Qc2 {[%emt 0:00:16]} axb3 {[%emt 0:01:10]} 24. axb3 {[%emt 0:00:04]} Nf6 {[%emt 0:02:40]} 25. Bb2 {[%emt 0:07:31]} Nxd5 {[%emt 0:01:01]} 26. exd5 {[%emt 0:02:46]} Bd7 {[%emt 0:02:34]} 27. Rxe8+ {[%emt 0:01:21]} Qxe8 {[%emt 0:00:03]} 28. Qc1 {[%emt 0:01:03]} Qe7 {[%emt 0:15:45]} 29. Re1 {[%emt 0:08:34][%cal Bd1e1,Be1e3,Be3e7][%mdl 32]} Qg5 {[%emt 0:01:59]} 30. Re3 {[%emt 0:02:46] [#] Strongly threatening Ne4.} Bf5 {[%emt 0:11:12]} (30... Bxh3 $1 $17 31. Rxh3 Qxc1+ 32. Bxc1 Ra1) 31. Ne2 $11 {[%emt 0:02:14]} Bd7 {[%emt 0:04:27]} 32. Bxg7 {[%emt 0:01:02]} Kxg7 {[%emt 0:00:01]} 33. Qc3+ {[%emt 0:00:49]} Qf6 {[%emt 0:00:24]} 34. Re7 {[%emt 0:00:50]} Qxc3 {[%emt 0:01:22]} (34... Rd8 {is more complex.} 35. h4 Qxc3 36. Nxc3 Kf8) 35. Nxc3 {[%emt 0:00:02][%mdl 4096] Endgame KRB-KRN} Rd8 {[%emt 0:00:08]} 36. g4 {[%emt 0:00:55]} Kf8 {[%emt 0:01:30]} 37. Re3 {[%emt 0:00:04]} Re8 {[%emt 0:00:10]} ({Black should play} 37... f5 $15) 38. Rxe8+ {[%emt 0:01:58] The position is equal.} Kxe8 {[%emt 0:00:03] KB-KN} 39. Kg2 {[%emt 0:00:21]} f5 {[%emt 0:00:23]} 40. Kg3 {[%emt 0:01:08]} Ke7 {[%emt 0:03:47]} 41. Nb5 {[%emt 0:08:31]} Bxb5 {[%emt 0:01:26]} 42. cxb5 {[%emt 0:00:09] KP-KP} Kf6 {[%emt 0:00:16]} 43. f4 {[%emt 0:00:37]} g5 {[%emt 0:03:02]} 44. Kf3 {[%emt 0:01:33]} fxg4+ {[%emt 0:01:22]} 45. hxg4 {[%emt 0:03:20]} gxf4 {[%emt 0:00:13]} 46. Kxf4 {[%emt 0:00:04]} Kg6 {[%emt 0:00:04]} 47. Ke4 {[%emt 0:00:54]} Kg5 {[%emt 0:00:11]} 48. Kf3 {[%emt 0:00:04]} Kg6 {[%emt 0:00:09]} (48... Kf6 $5 {[%cal Rf6e5]} 49. Kf4 Ke7 $11) 49. Ke4 {[%emt 0:00:05]} Kg5 {[%emt 0:00:03]} (49... Kf6 $5) 50. Kf3 {[%emt 0:00:03]} Kg6 {[%emt 0:00:06]} 51. Ke4 {[%emt 0:00:06] Weighted Error Value: White=0.08 (flawless) /Black=0.07 (flawless)} 1/2-1/2

[Event "USA Championship 2022"]
[Site "Saint Louis"]
[Date "2022.10.08"]
[Round "4.7"]
[White "Aronian, Levon"]
[Black "Robson, Ray"]
[Result "1/2-1/2"]
[ECO "D38"]
[WhiteElo "2755"]
[BlackElo "2690"]
[Annotator "TA"]
[PlyCount "113"]
[EventDate "2022.09.05"]
[EventType "tourn"]
[EventCountry "USA"]
[SourceTitle "playchess.com"]
[Source "ChessBase"]
[SourceQuality "1"]
[TimeControl "40/5400+30:1800+30"]

{[%evp 12,113,28,4,29,22,22,18,10,0,4,0,0,10,25,35,49,41,41,48,37,47,37,46,52,31,68,38,56,46,48,24,27,26,35,17,71,31,25,38,35,4,4,4,104,12,12,20,17,0,23,0,0,0,0,0,0,0,0,-12,-12,-12,-20,-15,-11,-70,-56,-91,-86,-104,-110,-104,0,0,0,0,0,0,0,-8,-8,-8,0,0,0,0,0,0,0,0,0,0,0,0,0,0,0,0,0,0,0,0,0,0]} 1. d4 {[%emt 0:00:03]} Nf6 {[%emt 0:02:49]} 2. c4 {[%emt 0:00:03]} e6 {[%emt 0:00:19]} 3. Nf3 {[%emt 0:00:05]} d5 {[%emt 0:00:27]} 4. Nc3 {[%emt 0:00:06]} Bb4 {[%emt 0:01:32]} 5. cxd5 {[%emt 0:02:01]} exd5 {[%emt 0:00:18]} 6. Bg5 {[%emt 0:00:05]} h6 {[%emt 0:01:29]} 7. Bh4 {[%emt 0:00:45]} O-O {[%emt 0:03:47] D38: Queen's Gambit Declined: Ragozin Defence (4 Nf3 Bb4).} 8. e3 {[%emt 0:00:27]} Bf5 {[%emt 0:00:44]} 9. Qb3 {[%emt 0:02:49]} Bxc3+ {[%emt 0:01:47]} 10. bxc3 {[%emt 0:03:22]} Nbd7 {[%emt 0:03:13]} 11. Be2 {[%emt 0:02:08]} c5 {[%emt 0:02:54]} 12. dxc5 {[%emt 0:00:52]} g5 {[%emt 0:05:37][%cal Bg7g5,Bg5h4,Bh4h3][%mdl 32]} 13. Nd4 {[%emt 0:04:26]} Nxc5 {[%emt 0:18:34]} (13... gxh4 $2 14. Nxf5 Qc7 15. Qb4 $16 (15. Nxh6+ Kh7 $16)) 14. Qb5 {[%emt 0:05:39] [#]} Qc8 $146 {[%emt 0:01:04] Threatens to win with ...Bd7.} ({Predecessor:} 14... Nfe4 15. Nxf5 Qf6 16. Nd4 gxh4 17. f3 Nxc3 18. Qxc5 Rac8 19. Qa3 Qe5 20. Qb2 Qxe3 {1-0 (36) Sebenik,M (2457)-Riazantsev,A (2635) Tallinn 2019}) 15. Nxf5 {[%emt 0:02:42]} Qxf5 {[%emt 0:00:07]} 16. Qxc5 {[%emt 0:00:11] aiming for Bg3.} gxh4 {[%emt 0:00:09]} 17. Qd4 {[%emt 0:00:05]} Qg5 {[%emt 0:00:46]} 18. O-O {[%emt 0:04:13]} Rfe8 {[%emt 0:01:46]} 19. Rab1 {[%emt 0:03:19]} b6 {[%emt 0:03:42]} 20. Rb5 {[%emt 0:08:09]} Re4 {[%emt 0:18:25]} 21. Qd1 {[%emt 0:00:00]} h3 $1 {[%emt 0:09:20][%csl Gh3][%cal Rg5g2]} 22. g3 {[%emt 0:00:00][%cal Oc3c4]} Rd8 {[%emt 0:01:30]} 23. c4 {[%emt 0:00:00]} Ree8 {[%emt 0:03:57]} (23... Qe5 $11 {keeps the balance.}) 24. Qd4 {[%emt 0:07:27]} Qf5 {[%emt 0:05:33] Against Bf3} 25. cxd5 {[%emt 0:03:14]} Re5 {[%emt 0:05:03]} 26. Qh4 {[%emt 0:20:49]} Rdxd5 {[%emt 0:00:00]} 27. Rb4 {[%emt 0:01:50]} Rd2 {[%emt 0:01:09]} (27... Re4 $1 $11 28. Rxe4 Qxe4 29. Qxh3 Kg7) 28. Bg4 {[%emt 0:07:42]} (28. Rf4 $1 $16 {[%cal Rf4f5]} Qg5 29. Qxh3 $1) 28... Qg6 $11 {[%emt 0:04:47]} 29. Qxh3 {[%emt 0:05:01]} Rxa2 {[%emt 0:00:00]} 30. Bf3 {[%emt 0:00:51]} Kg7 {[%emt 0:00:00]} 31. Qc8 {[%emt 0:01:27]} Qf5 {[%emt 0:01:16]} 32. Qb7 {[%emt 0:05:03]} Qd7 {[%emt 0:02:03]} 33. Rg4+ {[%emt 0:04:18]} Rg5 {[%emt 0:00:57]} 34. Qxd7 {[%emt 0:00:45]} Nxd7 {[%emt 0:00:02]} 35. Rf4 {[%emt 0:00:01]} Rd2 {[%emt 0:01:08]} 36. Rd4 $1 {[%emt 0:03:15]} Rxd4 {[%emt 0:01:19]} 37. exd4 {[%emt 0:00:05][%mdl 4096] Endgame KRB-KRN} Rg6 {[%emt 0:00:19]} 38. Rc1 {[%emt 0:00:33]} (38. Ba8 $11) 38... Rd6 $15 {[%emt 0:00:28]} 39. Rc7 {[%emt 0:00:06] [#]} a5 $1 {[%emt 0:00:22]} 40. d5 {[%emt 0:00:05]} Kf6 {[%emt 0:01:07]} 41. Kf1 {[%emt 0:31:14]} Ne5 {[%emt 0:05:55]} ({Black should try} 41... a4 $17 42. Ke2 b5) 42. Be4 $11 {[%emt 0:00:00] The position is equal.} b5 {[%emt 0:05:40]} 43. Ke2 {[%emt 0:00:00]} Ra6 {[%emt 0:04:54]} 44. f4 {[%emt 0:00:00]} Nc4 {[%emt 0:00:28]} 45. Rc6+ {[%emt 0:00:00]} Rxc6 {[%emt 0:00:07]} 46. dxc6 {[%emt 0:00:00] c7 is the strong threat. KB-KN} Ke7 {[%emt 0:05:29]} 47. c7 {[%emt 0:00:00]} Kd7 {[%emt 0:00:16]} 48. Bc6+ {[%emt 0:00:00]} Kxc7 {[%emt 0:00:05]} 49. Bxb5 {[%emt 0:00:00]} Nd6 {[%emt 0:03:20]} 50. Ba4 {[%emt 0:00:00]} Kd8 {[%emt 0:02:12]} 51. Kd3 {[%emt 0:00:00]} Ke7 {[%emt 0:00:10]} 52. Kd4 {[%emt 0:00:00]} Kf6 {[%emt 0:00:31]} 53. Kd5 {[%emt 0:00:00]} Nf5 {[%emt 0:00:25]} 54. Ke4 {[%emt 0:00:00]} Nd6+ {[%emt 0:00:06]} 55. Kd5 {[%emt 0:00:00]} Nf5 {[%emt 0:00:06]} 56. Ke4 {[%emt 0:00:00]} Nd6+ {[%emt 0:00:22]} 57. Kd5 {Weighted Error Value: White=0.11 (very precise) /Black=0.08 (flawless)} 1/2-1/2